fUST/lending_fUST_20251113
["ID","MTS","AMOUNT","RATE_DAILY","PERIOD"]
[393787030,1762986638185,-500.0,0.00025998,2]
[393787031,1762986638194,-500.0,0.00025998,2]
[393787032,1762986638203,-500.0,0.00025998,2]
[393787033,1762986638213,-500.0,0.00025998,2]
[393787035,1762986638221,-179.22811648,0.00025998,2]
[393787037,1762986638259,-320.77188352,0.00025998,2]
[393787038,1762986638268,-500.0,0.00025998,2]
[393787039,1762986638278,-500.0,0.00025998,2]
[393787040,1762986638287,-500.0,0.00025998,2]
[393787041,1762986638297,-500.0,0.00025998,2]
[393787042,1762986638307,-500.0,0.00025998,2]
[393787043,1762986638316,-500.0,0.00025998,2]
[393787044,1762986638326,-500.0,0.00025998,2]
[393787045,1762986638335,-500.0,0.00025998,2]
[393787046,1762986638345,-500.0,0.00025998,2]
[393787047,1762986638354,-500.0,0.00025998,2]
[393787048,1762986638364,-500.0,0.00025998,2]
[393787049,1762986638374,-500.0,0.00025998,2]
[393787050,1762986638384,-500.0,0.00025998,2]
[393787051,1762986638393,-500.0,0.00025998,2]
[393787052,1762986638403,-500.0,0.00025998,2]
[393787053,1762986638412,-396.11059212,0.00025998,2]
[393787054,1762986638422,-500.0,0.00025998,2]
[393787055,1762986638432,-500.0,0.00025998,2]
[393787056,1762986638441,-500.0,0.00025998,2]
[393787057,1762986638451,-500.0,0.00025998,2]
[393787058,1762986638461,-500.0,0.00025998,2]
[393787059,1762986638470,-500.0,0.00025998,2]
[393787060,1762986638481,-500.0,0.00025998,2]
[393787061,1762986638491,-67.50255015,0.00025998,2]
[393787097,1762986640054,-150.0,0.00025547,2]
[393787098,1762986640065,-432.49744985,0.00025998,2]
[393787099,1762986640075,-500.0,0.00025998,2]
[393787100,1762986640084,-352.95028588,0.00025998,2]
[393787101,1762986640094,-500.0,0.00025998,2]
[393787102,1762986640104,-500.0,0.00025998,2]
[393787103,1762986640113,-500.0,0.00025998,2]
[393787104,1762986640123,-500.0,0.00025998,2]
[393787105,1762986640133,-500.0,0.00025998,2]
[393787106,1762986640144,-500.0,0.00025998,2]
[393787107,1762986640153,-500.0,0.00025998,2]
[393787108,1762986640163,-370.3116977,0.00025998,2]
[393787119,1762986640236,-3e-08,0.00025998,2]
[393787121,1762986640247,-129.68830227,0.00025998,2]
[393787123,1762986640256,-500.0,0.00025998,2]
[393787125,1762986640265,-500.0,0.00025998,2]
[393787127,1762986640275,-500.0,0.00025998,2]
[393787129,1762986640285,-500.0,0.00025998,2]
[393787131,1762986640297,-500.0,0.00025998,2]
[393787133,1762986640307,-500.0,0.00025998,2]
[393787135,1762986640317,-500.0,0.00025998,2]
[393787137,1762986640326,-500.0,0.00025998,2]
[393787139,1762986640335,-500.0,0.00025998,2]
[393787141,1762986640344,-500.0,0.00025998,2]
[393787143,1762986640354,-500.0,0.00025998,2]
[393787145,1762986640363,-500.0,0.00025998,2]
[393787147,1762986640372,-500.0,0.00025998,2]
[393787149,1762986640382,-500.0,0.00025998,2]
[393787151,1762986640392,-500.0,0.00025998,2]
[393787153,1762986640401,-500.0,0.00025998,2]
[393787155,1762986640411,-500.0,0.00025998,2]
[393787157,1762986640420,-500.0,0.00025998,2]
[393787159,1762986640429,-500.0,0.00025998,2]
[393787161,1762986640439,-500.0,0.00025998,2]
[393787163,1762986640447,-500.0,0.00025999,2]
[393787165,1762986640457,-284.30308674,0.00025999,2]
[393787167,1762986640467,-480.29688398,0.00025999,2]
[393787169,1762986640475,-39459.25814488,0.00026,10]
[393787171,1762986640485,-151.728387,0.00027397,31]
[393787173,1762986640495,-177.0,0.00027547,2]
[393787175,1762986640507,-300.0,0.00028136,2]
[393787177,1762986640516,-204.0,0.00029547,2]
[393787179,1762986640525,-153.33703227,0.00029668,5]
[393787181,1762986640534,-9095.91570916,0.0002999,2]
[393787183,1762986640544,-48812.97416257,0.0003,30]
[393787185,1762986640555,-16139.2,0.0003,30]
[393787382,1762986642998,-500.0,0.00025999,2]
[393787383,1762986643008,-500.0,0.00029999,60]
[393787384,1762986643018,-500.0,0.00029999,60]
[393787385,1762986643028,-48225.35056969,0.0003,30]
[393787402,1762986646380,-5955.88767407,0.0003,30]
[393787403,1762986646391,-22019.64726833,0.0003,30]
[393787404,1762986646439,-108821.34383351,0.0003,30]
[393787405,1762986646500,-296537.57680507,0.0003,30]
[393787406,1762986680393,200.0,0.00036709,30]
[393787409,1762986701318,154.729244,0.00025824,20]
[393787411,1762986731715,166.67364249,0.00036709,60]
[393787413,1762986794265,238.13224333,0.00018343,2]
[393787415,1762986817485,161.193694,0.00013699,2]
[393787416,1762986817709,161.193694,0.00020187,2]
[393787418,1762986845723,242.49061382,0.00036698,120]
[393787419,1762986883515,396.0,0.0002999,120]
[393787420,1762986883973,396.0,0.0002998,120]
[393787421,1762986884381,396.0,0.0002997,120]
[393787422,1762986903167,202.0,0.00032877,120]
[393787423,1762986903253,202.38704948,0.00036698,60]
[393787424,1762986903290,177.8013174,0.00032877,120]
[393787425,1762986903356,160.0,0.00036698,120]
[393787426,1762986903417,205.57221342,0.00036698,120]
[393787427,1762986908470,271.0,0.00030149,120]
[393787428,1762986909707,271.0,0.00031656,120]
[393787429,1762986928990,878.0,0.00030156,120]
[393787430,1762986930029,878.0,0.00031663,120]
[393787431,1762986981297,200.0,0.00036698,30]
[393787432,1762986987683,550.0,0.00036698,120]
[393787433,1762987000702,315.51331446,0.00036698,20]
[393787434,1762987005709,150.0,0.00036698,20]
[393787435,1762987005874,253.93112186,0.00036698,20]
[393787436,1762987006048,946.41176246,0.00036698,20]
[393787437,1762987006334,419.93666097,0.00036698,20]
[393787438,1762987022355,617.72099782,0.00036698,20]
[393787439,1762987026546,195.0,0.00036698,20]
[393787440,1762987033151,529.10299829,0.00032876,120]
[393787441,1762987058955,-150.0,0.00025602,2]
[393787442,1762987058983,-500.0,0.00025999,2]
[393787443,1762987059011,-161.193694,0.00026676,2]
[393787444,1762987059039,-177.0,0.00027602,2]
[393787445,1762987059064,-238.13224333,0.00028528,2]
[393787446,1762987059091,-382.89378263,0.0002855,2]
[393787447,1762987059116,-160.0,0.00028612,2]
[393787448,1762987059140,-371.8126424,0.00028619,2]
[393787449,1762987059166,-169.0,0.00029233,33]
[393787450,1762987059193,-204.0,0.00029602,2]
[393787451,1762987059218,-300.0,0.00029899,2]
[393787452,1762987059244,-1166.1800362,0.000299,2]
[393787453,1762987059268,-573.34682906,0.00029973,5]
[393787454,1762987059294,-500.0,0.00029973,5]
[393787455,1762987059319,-500.0,0.00029973,5]
[393787456,1762987059343,-503.80245893,0.00029973,5]
[393787457,1762987059368,-500.0,0.00029973,5]
[393787458,1762987059392,-501.89871753,0.00029973,5]
[393787459,1762987059418,-500.0,0.00029973,5]
[393787460,1762987059442,-157.20370354,0.00029973,5]
[393787461,1762987059467,-500.0,0.00029973,5]
[393787462,1762987059490,-199.01216072,0.00029989,2]
[393787463,1762987059515,-336.20781879,0.00029989,2]
[393787464,1762987059541,-500.0,0.00029989,2]
[393787465,1762987059566,-500.0,0.00029989,2]
[393787466,1762987059593,-488.45673246,0.00029989,2]
[393787467,1762987059620,-165.27471059,0.00029989,2]
[393787468,1762987059646,-500.0,0.00029989,2]
[393787469,1762987059671,-500.0,0.00029989,2]
[393787470,1762987059699,-500.0,0.00029989,2]
[393787471,1762987059728,-500.0,0.00029989,2]
[393787472,1762987059754,-500.0,0.00029989,2]
[393787473,1762987059780,-500.0,0.00029989,2]
[393787474,1762987059807,-500.0,0.00029989,2]
[393787475,1762987059834,-500.0,0.00029989,2]
[393787476,1762987059860,-185.29502859,0.00029989,2]
[393787477,1762987059887,-500.0,0.00029989,2]
[393787478,1762987059913,-9909.28944123,0.0002999,2]
[393787479,1762987060648,-227.2505305,0.00025999,2]
[393787480,1762987060675,-24772.7494695,0.0002999,2]
[393787481,1762987061115,-25000.0,0.0002999,2]
[393787482,1762987061920,-11693.55935957,0.0002999,2]
[393787483,1762987061968,-13306.44064043,0.0002999,2]
[393787484,1762987062567,-16741.67539937,0.0002999,2]
[393787485,1762987062592,-2113.13,0.00029998,3]
[393787486,1762987062618,-168.681,0.00029999,24]
[393787487,1762987062643,-623.34312312,0.00029999,16]
[393787488,1762987062666,-5353.17047751,0.0003,30]
[393787489,1762987063140,-25000.0,0.0003,30]
[393787490,1762987064107,-25000.0,0.0003,30]
[393787491,1762987064846,-25000.0,0.0003,30]
[393787492,1762987065524,-25000.0,0.0003,30]
[393787493,1762987066243,-25000.0,0.0003,30]
[393787494,1762987077713,1366.34842343,0.00036698,20]
[393787495,1762987078673,150.0,0.00036698,20]
[393787496,1762987078869,253.93112186,0.00036698,20]
[393787497,1762987083184,-181.4298721,0.00029483,2]
[393787498,1762987083212,-282.0,0.00029999,2]
[393787499,1762987083237,-24536.5701279,0.0003,30]
[393787500,1762987084236,-515.70850134,0.00029873,5]
[393787501,1762987084260,-500.0,0.00029973,5]
[393787502,1762987084283,-239.37976358,0.00029973,5]
[393787503,1762987084306,-500.0,0.00029973,5]
[393787504,1762987084330,-500.0,0.00029973,5]
[393787505,1762987084354,-291.61065984,0.00029973,5]
[393787506,1762987084379,-22453.30107524,0.0003,30]
[393787507,1762987084655,315.51331446,0.00036698,20]
[393787508,1762987085718,-25000.0,0.0003,30]
[393787509,1762987086475,-25000.0,0.0003,30]
[393787511,1762987102711,1999.63160821,0.00036698,120]
[393787512,1762987108010,-24028.99020948,0.0003,30]
[393787513,1762987108035,-971.00979052,0.0003,10]
[393787515,1762987209821,469.0,0.00030739,120]
[393787516,1762987212134,469.0,0.00032276,120]
[393787517,1762987221823,489.0,0.00036698,120]
[393787518,1762987234626,474.0,0.00030749,120]
[393787519,1762987235892,474.0,0.00032287,120]
[393787520,1762987266499,242.49061382,0.00036698,120]
[393787521,1762987281083,200.0,0.00036698,30]
[393787522,1762987308556,-150.0,0.00025602,2]
[393787523,1762987308582,-500.0,0.00025999,2]
[393787524,1762987308604,-500.0,0.00025999,2]
[393787525,1762987310374,166.67364249,0.00036698,60]
[393787526,1762987319949,-177.0,0.00027602,2]
[393787528,1762987351280,161.95,0.00036698,20]
[393787529,1762987406225,169.7021934,0.00025999,2]
[393787530,1762987408647,383.45561454,0.00032794,120]
[393787531,1762987430819,266.71046446,0.0003288,120]
[393787532,1762987502426,280.25877849,0.00036692,120]
[393787533,1762987512499,282.0,0.00030747,120]
[393787534,1762987514065,282.0,0.00032284,120]
[393787537,1762987534319,285.0,0.00030742,120]
[393787538,1762987535625,285.0,0.00032279,120]
[393787539,1762987579580,200.0,0.00036692,30]
[393787540,1762987581602,150.0,0.0002589,2]
[393787541,1762987582047,177.0,0.0002789,2]
[393787542,1762987685474,1010.03599912,0.00036692,120]
[393787547,1762987756878,180.30998352,0.00036692,60]
[393787548,1762987808771,169.0,0.00030709,120]
[393787549,1762987810114,169.0,0.00032245,120]
[393787577,1762987832105,-1005.0,0.00029682,2]
[393787580,1762987832116,-321.22005745,0.00029682,2]
[393787582,1762987832125,-204.0,0.0002989,2]
[393787583,1762987832134,-412.86149981,0.00029973,5]
[393787585,1762987832143,-316.4182389,0.00029973,5]
[393787671,1762987836434,171.0,0.00030703,120]
[393787672,1762987837702,171.0,0.00032238,120]
[393787679,1762987838071,-183.5817611,0.00029973,5]
[393787680,1762987838081,-500.0,0.00029973,5]
[393787681,1762987838090,-633.7140219,0.0002998,2]
[393787682,1762987838100,-308.0405374,0.0002998,2]
[393787683,1762987838110,-785.03546029,0.00029994,2]
[393787706,1762987840331,-664.43910301,0.00029994,2]
[393787708,1762987840340,-2805.93710947,0.0003,10]
[393787886,1762987846491,-656.16275011,0.0003,10]
[393787890,1762987859444,581.77054341,0.00036692,120]
[393787891,1762987860461,677.13344485,0.00025205,2]
[393787892,1762987863205,500.0,0.000253,2]
[393787893,1762987869865,180.0,0.00032279,120]
[393787894,1762987872121,180.0,0.00032279,120]
[393787895,1762987875385,180.0,0.00032279,120]
[393787896,1762987877641,180.0,0.00032279,120]
[393787897,1762987879907,180.0,0.00032279,120]
[393787898,1762987879995,200.0,0.00036692,30]
[393787899,1762987882189,261.83403233,0.00032279,120]
[393787900,1762987894756,150.0,0.0002589,2]
[393787901,1762987895169,177.0,0.0002789,2]
[393787931,1762987930968,581.77054341,0.00036692,120]
[393787986,1762987945329,295.3164451,0.00018343,2]
[393787987,1762987945975,295.3164451,0.00022962,2]
[393787988,1762987946637,295.3164451,0.00027581,2]
[393787989,1762987981769,611.46,5e-05,2]
[393787990,1762987982096,611.46,5.2e-05,2]
[393787991,1762987982436,611.46,5.3e-05,2]
[393787992,1762987982681,611.46,5.5e-05,2]
[393787993,1762987982988,611.46,5.7e-05,2]
[393787994,1762987983311,611.46,5.8e-05,2]
[393787995,1762987983589,611.46,6e-05,2]
[393787996,1762987983897,611.46,6.2e-05,2]
[393787997,1762987984199,611.46,6.4e-05,2]
[393787998,1762987984637,611.46,6.5e-05,2]
[393787999,1762987984994,611.46,6.7e-05,2]
[393788000,1762987985330,611.46,6.9e-05,2]
[393788001,1762987985612,611.46,7e-05,2]
[393788002,1762987985904,611.46,7.2e-05,2]
[393788003,1762987986203,611.46,7.4e-05,2]
[393788004,1762987986491,611.46,7.5e-05,2]
[393788005,1762987986840,611.46,7.7e-05,2]
[393788006,1762987987143,611.46,7.9e-05,2]
[393788007,1762987987427,611.46,8e-05,2]
[393788008,1762987987709,611.46,8.2e-05,2]
[393788009,1762987988118,611.46,8.4e-05,2]
[393788010,1762987988465,611.46,8.6e-05,2]
[393788011,1762987988766,611.46,8.7e-05,2]
[393788012,1762987989068,611.46,8.9e-05,2]
[393788013,1762987989361,611.46,9.1e-05,2]
[393788014,1762987989700,611.46,9.2e-05,2]
[393788015,1762987990107,611.46,9.4e-05,2]
[393788016,1762987990474,611.46,9.6e-05,2]
[393788017,1762987990760,611.46,9.7e-05,2]
[393788018,1762987991094,611.46,9.9e-05,2]
[393788019,1762987991451,611.46,0.000101,2]
[393788020,1762987991768,611.46,0.000103,2]
[393788021,1762987992026,611.46,0.000104,2]
[393788022,1762987992320,611.46,0.000106,2]
[393788023,1762987992601,611.46,0.000108,2]
[393788024,1762987992887,611.46,0.000109,2]
[393788025,1762987993173,100.65502645,0.000111,2]
[393788026,1762987993201,510.80497355,0.000111,2]
[393788027,1762987993597,611.46,0.000113,2]
[393788028,1762987994373,276.55653488,0.00018343,2]
[393788029,1762987994533,611.46,0.000114,2]
[393788030,1762987995004,276.55653488,0.00027552,2]
[393788031,1762987997976,611.46,0.000116,2]
[393788032,1762987998266,611.46,0.000118,2]
[393788033,1762987998546,611.46,0.000119,2]
[393788034,1762987998828,611.46,0.000121,2]
[393788035,1762987999149,611.46,0.000123,2]
[393788036,1762987999441,611.46,0.000125,2]
[393788037,1762987999713,611.46,0.000126,2]
[393788038,1762987999999,611.46,0.000128,2]
[393788039,1762988000288,611.46,0.00013,2]
[393788040,1762988000570,611.46,0.000131,2]
[393788041,1762988000945,611.46,0.000133,2]
[393788042,1762988005559,180.30998352,0.00036692,60]
[393788043,1762988017312,305.6240141,0.00018343,2]
[393788044,1762988018507,305.6240141,0.00022925,2]
[393788045,1762988018850,305.6240141,0.00027508,2]
[393788046,1762988031764,1000.0,0.00036692,120]
[393788047,1762988031991,1000.0,0.00036692,120]
[393788048,1762988032104,180.30998352,0.00036692,60]
[393788049,1762988032493,1000.0,0.00036692,120]
[393788050,1762988032756,1000.0,0.00036692,120]
[393788051,1762988032994,355.32223058,0.00036692,120]
[393788052,1762988041321,813.847597,0.00018343,2]
[393788053,1762988041641,153.52,5e-05,2]
[393788054,1762988041934,153.52,5.2e-05,2]
[393788055,1762988041979,813.847597,0.00022925,2]
[393788056,1762988042218,153.52,5.4e-05,2]
[393788057,1762988042536,153.52,5.6e-05,2]
[393788058,1762988042667,813.847597,0.00027508,2]
[393788059,1762988042821,153.52,5.8e-05,2]
[393788060,1762988043176,153.52,6e-05,2]
[393788061,1762988043569,153.52,6.2e-05,2]
[393788062,1762988043846,153.52,6.5e-05,2]
[393788063,1762988044239,153.52,6.7e-05,2]
[393788064,1762988044560,153.52,6.9e-05,2]
[393788065,1762988044899,153.52,7.1e-05,2]
[393788066,1762988045243,153.52,7.3e-05,2]
[393788067,1762988045663,153.52,7.5e-05,2]
[393788068,1762988045894,153.52,7.7e-05,2]
[393788069,1762988046110,153.52,7.9e-05,2]
[393788070,1762988046473,153.52,8.1e-05,2]
[393788071,1762988046821,153.52,8.3e-05,2]
[393788072,1762988047152,153.52,8.5e-05,2]
[393788073,1762988047538,153.52,8.7e-05,2]
[393788074,1762988048490,153.52,8.9e-05,2]
[393788075,1762988048873,153.52,9.2e-05,2]
[393788076,1762988049214,153.52,9.4e-05,2]
[393788077,1762988049586,153.52,9.6e-05,2]
[393788078,1762988049858,153.52,9.8e-05,2]
[393788079,1762988050192,153.52,0.0001,2]
[393788080,1762988050531,153.52,0.000102,2]
[393788081,1762988051470,153.52,0.000104,2]
[393788082,1762988051973,153.52,0.000106,2]
[393788083,1762988052273,153.52,0.000108,2]
[393788084,1762988052575,153.52,0.00011,2]
[393788085,1762988052862,153.52,0.000112,2]
[393788086,1762988053150,153.52,0.000114,2]
[393788087,1762988053439,153.52,0.000116,2]
[393788088,1762988053722,153.52,0.000118,2]
[393788089,1762988054308,153.52,0.000121,2]
[393788090,1762988054676,153.52,0.000123,2]
[393788091,1762988054999,153.52,0.000125,2]
[393788092,1762988055301,153.52,0.000127,2]
[393788093,1762988055591,153.52,0.000129,2]
[393788094,1762988056161,153.52,0.000131,2]
[393788095,1762988056206,153.52,0.000133,2]
[393788096,1762988102053,157.34,5e-05,2]
[393788097,1762988102357,157.34,5.4e-05,2]
[393788098,1762988102753,157.34,5.9e-05,2]
[393788099,1762988103171,157.34,6.3e-05,2]
[393788100,1762988103491,157.34,6.7e-05,2]
[393788101,1762988103807,157.34,7.2e-05,2]
[393788102,1762988104103,157.34,7.6e-05,2]
[393788103,1762988104414,157.34,8.1e-05,2]
[393788104,1762988105375,157.34,8.5e-05,2]
[393788105,1762988105767,157.34,8.9e-05,2]
[393788106,1762988106101,157.34,9.4e-05,2]
[393788107,1762988106410,157.34,9.8e-05,2]
[393788108,1762988106747,157.34,0.000102,2]
[393788109,1762988107090,157.34,0.000107,2]
[393788110,1762988107634,157.34,0.000111,2]
[393788111,1762988107833,157.34,0.000116,2]
[393788112,1762988108188,157.34,0.00012,2]
[393788113,1762988108500,157.34,0.000124,2]
[393788114,1762988108838,157.34,0.000129,2]
[393788115,1762988109339,157.34,0.000133,2]
[393788116,1762988118317,172.17372138,0.00027268,2]
[393788118,1762988198403,157.4922158,0.00030137,120]
[393788119,1762988207789,150.0,0.0002589,2]
[393788120,1762988208189,177.0,0.0002789,2]
[393788121,1762988223287,238.68068987,0.00026396,2]
[393788122,1762988223352,800.0,0.000253,2]
[393788124,1762988295656,502.8096507,0.00018343,2]
[393788125,1762988296259,502.8096507,0.00022532,2]
[393788126,1762988296933,467.09341074,0.00026721,2]
[393788127,1762988296961,35.71623996,0.00026721,2]
[393788129,1762988324793,277.0,0.00029969,120]
[393788130,1762988325227,277.0,0.00029959,120]
[393788131,1762988325659,277.0,0.00029949,120]
[393788132,1762988335527,-690.50244893,0.00028645,30]
[393788135,1762988410372,170.0,0.00031289,120]
[393788136,1762988411711,170.0,0.00032854,120]
[393788137,1762988429842,171.0,0.00031408,120]
[393788138,1762988503835,168.683,0.00026849,14]
[393788139,1762988520778,150.0,0.0002589,2]
[393788140,1762988563087,154.729244,0.00025824,20]
[393788142,1762988684409,-465.105064,0.00027045,2]
[393788143,1762988684438,-5210.8611617,0.00027503,2]
[393788144,1762988684465,-177.0,0.0002789,2]
[393788145,1762988690937,-199.13245302,0.00028142,2]
[393788146,1762988690962,-199.13245301,0.00028147,2]
[393788147,1762988690988,-199.13245301,0.00028152,2]
[393788148,1762988691013,-300.0,0.00028241,2]
[393788149,1762988691039,-24102.60264096,0.00028242,2]
[393788150,1762988691599,19147.0337743,0.0002699,2]
[393788151,1762988691625,24490.87151604,0.0002699,2]
[393788152,1762988705218,-300.0,0.00026989,2]
[393788153,1762988705244,-300.0,0.00026989,2]
[393788154,1762988705271,-300.0,0.00026989,2]
[393788155,1762988705297,-300.0,0.00026989,2]
[393788156,1762988705321,-23800.0,0.0002699,2]
[393788157,1762988714593,197.0,0.00028452,120]
[393788158,1762988715935,197.0,0.00029874,120]
[393788159,1762988717223,197.0,0.00031368,120]
[393788161,1762988740140,412.0,0.00027867,120]
[393788162,1762988741857,412.0,0.0002926,120]
[393788163,1762988743507,412.0,0.00030723,120]
[393788164,1762988744005,-609.31245739,0.00026882,2]
[393788165,1762988744029,-500.0,0.00026973,2]
[393788166,1762988744054,-500.0,0.00026973,2]
[393788167,1762988744082,-1200.0,0.00026989,2]
[393788168,1762988744107,-29752.78225227,0.0002699,2]
[393788169,1762988744868,412.0,0.00032259,120]
[393788203,1762988833629,150.0,0.0002589,2]
[393788229,1762988883692,206.69,0.00018631,2]
[393788230,1762989002208,300.0,0.00026,2]
[393788231,1762989002993,300.0,0.00026,2]
[393788232,1762989004212,300.0,0.00026,2]
[393788233,1762989005179,232.69029816,0.00026,2]
[393788234,1762989015294,227.0,0.00027835,120]
[393788235,1762989016672,227.0,0.00029227,120]
[393788236,1762989018049,227.0,0.00030688,120]
[393788237,1762989020397,227.0,0.00032223,120]
[393788409,1762989033701,-216.87873232,0.00026882,2]
[393788410,1762989033710,-338.50692077,0.00026882,2]
[393788412,1762989033720,-1200.0,0.00026972,2]
[393788413,1762989033730,-500.0,0.00026973,2]
[393788414,1762989033739,-2809.31245739,0.0002699,2]
[393788415,1762989033749,-1200.0,0.00027371,2]
[393788416,1762989033758,-300.0,0.00027372,2]
[393788417,1762989033767,-300.0,0.00027372,2]
[393788418,1762989033777,-300.0,0.00027372,2]
[393788419,1762989033787,-500.0,0.00027373,2]
[393788420,1762989033797,-500.0,0.00027373,2]
[393788421,1762989033807,-500.0,0.00027373,2]
[393788422,1762989033816,-150.0,0.00027373,2]
[393788423,1762989033827,-501.72215712,0.00027373,2]
[393788424,1762989033836,-500.0,0.00027373,2]
[393788425,1762989033846,-500.0,0.00027373,2]
[393788426,1762989033855,-500.0,0.00027373,2]
[393788427,1762989033866,-500.0,0.00027373,2]
[393788428,1762989033876,-500.0,0.00027373,2]
[393788429,1762989033885,-500.0,0.00027373,2]
[393788430,1762989033895,-500.0,0.00027373,2]
[393788431,1762989033904,-500.0,0.00027373,2]
[393788432,1762989033916,-500.0,0.00027373,2]
[393788433,1762989033927,-1083.22214647,0.00027376,2]
[393788434,1762989033936,-493.91905659,0.00027395,2]
[393788435,1762989033945,-500.0,0.00027395,2]
[393788436,1762989033955,-500.0,0.00027395,2]
[393788437,1762989033964,-500.0,0.00027395,2]
[393788438,1762989033974,-500.0,0.00027396,2]
[393788439,1762989033984,-437.17081058,0.00027396,2]
[393788440,1762989033994,-500.0,0.00027396,2]
[393788441,1762989034004,-500.0,0.00027396,2]
[393788442,1762989034015,-500.0,0.00027396,2]
[393788443,1762989034025,-500.0,0.00027396,2]
[393788444,1762989034035,-500.0,0.00027396,2]
[393788445,1762989034045,-500.0,0.00027396,2]
[393788446,1762989034054,-500.0,0.00027396,2]
[393788447,1762989034064,-1171.82130699,0.00027396,2]
[393788448,1762989034073,-1171.82130699,0.00027396,2]
[393788449,1762989034083,-1171.82130699,0.00027396,2]
[393788450,1762989034092,-1171.82130699,0.00027396,2]
[393788451,1762989034102,-1171.82130699,0.00027396,2]
[393788452,1762989034112,-763.34435043,0.00027396,2]
[393788453,1762989034122,-763.34435043,0.00027396,2]
[393788454,1762989034131,-763.34435043,0.00027396,2]
[393788455,1762989034142,-763.34435043,0.00027396,2]
[393788456,1762989034151,-763.34435043,0.00027396,2]
[393788457,1762989034161,-763.34435043,0.00027396,2]
[393788458,1762989034170,-763.34435043,0.00027396,2]
[393788459,1762989034179,-763.34435043,0.00027396,2]
[393788460,1762989034190,-500.0,0.00027396,2]
[393788461,1762989034199,-500.0,0.00027396,2]
[393788462,1762989034208,-500.0,0.00027396,2]
[393788463,1762989034218,-500.0,0.00027396,2]
[393788464,1762989034228,-250.0,0.00027396,2]
[393788465,1762989034238,-1161.77712436,0.00027396,2]
[393788466,1762989034248,-1161.77712436,0.00027396,2]
[393788467,1762989034258,-735.31530007,0.00027396,2]
[393788468,1762989034267,-1161.77712436,0.00027396,2]
[393788469,1762989034276,-1161.77712436,0.00027396,2]
[393788470,1762989034286,-735.31530007,0.00027396,2]
[393788471,1762989034295,-1161.77712436,0.00027396,2]
[393788472,1762989034305,-735.31530007,0.00027396,2]
[393788473,1762989034314,-735.31530007,0.00027396,2]
[393788474,1762989034323,-1161.77712436,0.00027396,2]
[393788475,1762989034332,-735.31530007,0.00027396,2]
[393788476,1762989034342,-1161.77712436,0.00027396,2]
[393788477,1762989034351,-1161.77712436,0.00027396,2]
[393788478,1762989034360,-735.31530007,0.00027396,2]
[393788479,1762989034370,-1161.77712436,0.00027396,2]
[393788480,1762989034379,-735.31530007,0.00027396,2]
[393788481,1762989034389,-1161.77712436,0.00027396,2]